Cogmind - Beta 16 @@@ ROGUE MODE // 2025.12.26 @ 08:44:52 Player: shapeshifter Result: Destroyed by UF-L86(R) with Subdweller Shrapnel Launcher Performance ------------- Evolutions (0) 0 Regions Visited (2) 400 Robots Destroyed (12) 60 Value Destroyed (310) 310 Prototype IDs (0) 0 Alien Tech Used (0) 0 Bonus (0) 0 TOTAL SCORE: 770 Bonus ------- None Cogmind --------- Core Integrity 0/250 Matter 185/300 Energy 250/250 System Corruption 0% Temperature Cool (0) Movement Treading (160) Location -10/Subcaves Parts ------- > --- POWER (1) -------- Ion Engine > --- PROPULSION (2) --- Light Treads Light Treads > --- UTILITY (2) ------ Small Storage Unit Seismic Detector > --- WEAPON (2) ------- Assault Rifle Subdweller Machine Gun > --- INVENTORY (8) ---- Ion Engine Subdweller Power Source High-capacity Storage Unit Subdweller Optics Subdweller Laser Assault Rifle Assault Rifle Grenade Launcher Peak State ------------ > --- POWER ------------ Ion Engine > --- PROPULSION ------- Light Treads Light Treads > --- UTILITY ---------- Small Storage Unit Improved Terrain Scanner > --- WEAPON ----------- Assault Rifle Assault Rifle > --- INVENTORY -------- Ion Engine Light Treads Compact Wheel High-capacity Storage Unit Seismic Detector Assault Rifle Assault Rifle Light Assault Rifle [Rating: 9] Favorites ----------- Power Ion Engine Engine Ion Engine Propulsion Light Treads Treads Light Treads Utility Small Storage Unit Device Seismic Detector Storage Small Storage Unit Weapon Assault Rifle Energy Gun Small Laser Ballistic Gun Assault Rifle Build | -11 -10 -10 ------- Run | Yrd Mat Sub Slots Evolved . | . . . Power . | . . . Propulsion . | . . . Utility . | . . . Weapon . | . . . Parts Attached 13 | 7 3 3 Power 1 | 1 . . Engine 1 | 1 . . Core . | . . . Reactor . | . . . Propulsion 3 | 2 . 1 Treads 3 | 2 . 1 Leg . | . . . Wheel . | . . . Hover . | . . . Flight . | . . . Utility 3 | 2 1 . Device 2 | 1 1 . Storage 1 | 1 . . Processor . | . . . Hackware . | . . . Protection . | . . . Artifact . | . . . Weapon 6 | 2 2 2 Energy Gun 1 | 1 . . Energy Cannon . | . . . Ballistic Gun 5 | 1 2 2 Ballistic Cannon . | . . . Launcher . | . . . Special Weapon . | . . . Impact Weapon . | . . . Slashing Weapon . | . . . Piercing Weapon . | . . . Special Melee Weapon . | . . . Unidentified Prototypes . | . . . Parts Lost . | . . . Power . | . . . Propulsion . | . . . Utility . | . . . Weapon . | . . . Highest Loss Streak . | . . . To Critical Strikes . | . . . Average Backups 7 | 3 7 7 Power 1 | 1 1 1 Propulsion 1 | 1 1 . Utility 1 | . 1 2 Weapon 3 | . 3 3 Tool/Special . | . . . Unused Backups 13 | . 5 8 Power 2 | . . 2 Propulsion 2 | . 2 . Utility 2 | . . 2 Weapon 7 | . 3 4 Tool/Special . | . . . Average Slot Usage (%) 100 | . 100 100 Engine 14 | . 14 14 Treads 28 | . 28 28 Device 14 | . 14 14 Storage 14 | . 14 14 Energy Gun 4 | . 7 . Ballistic Gun 23 | . 20 28 Peak Build Rating 9 | 7 9 9 Average Rating 7 | 4 7 7 On Entrance 4 | . 7 7 Avg Prop Armor Cover (%) . | . . . Naked Turns . | . . . Heaviest Build 17 | 13 15 17 Greatest Support 40 | 40 40 40 Greatest Overweight (x) . | . . . Average Overweight (x) . | . . . Largest Inventory Capacity 8 | 8 8 8 Average Capacity 7 | 7 8 8 Most Carried 8 | 7 8 8 Average Carried 7 | 4 7 7 Final Capacity 8 | 8 8 8 Final Carried 8 | 5 8 8 Class Distribution -------------------- 100% | Mutant Dominant Class ---------------- Mutant | -10/Materials Mutant | -10/Subcaves Resources | -11 -10 -10 ----------- Run | Yrd Mat Sub Matter Collected 483 | 218 36 229 Remotely . | . . . Salvage Created 416 | 26 162 228 Parts 28 | 4 11 13 Haulers Intercepted . | . . . Recyclers Shooed . | . . . Parts Field Recycled . | . . . Retrieved Matter . | . . . Parts Self-Destructed 16 | . . 16 Prevented . | . . . Parts Restored . | . . . Kills | -11 -10 -10 ------- Run | Yrd Mat Sub Combat Hostiles Destroyed 9 | . 5 4 Guns 9 | . 5 4 Classes Destroyed 6 | 1 3 2 Tunneler 1 | 1 . . Watcher 2 | . 2 . Swarmer 3 | . 3 . Grunt 2 | . 2 . Artisan 1 | . . 1 Subdweller 4 | . . 4 Best Kill Streak 3 | 1 3 1 Combat Bots Only 3 | . 3 1 Max Kills in Single Turn 1 | 1 1 1 Gunslinging . | . . . Exploded . | . . . Melee . | . . . Uniques/NPCs Destroyed . | . . . Combat | -11 -10 -10 -------- Run | Yrd Mat Sub Hostile Shots Fired 61 | . 31 30 Missed 21 | . 13 8 Hits 40 | . 18 22 Projectile 40 | . 18 22 AOE 1 | . . 1 Critical Strikes 1 | . . 1 Damage Taken 718 | . 198 520 Core 271 | . 30 241 Absorbed by Shields . | . . . Core Remaining (%) 100 | 100 . . Volleys Fired 68 | 1 36 31 Largest 2 | 2 2 2 Hottest 60 | 60 60 50 Shots Fired 135 | 2 71 62 Gun 135 | 2 71 62 Cannon . | . . . Launcher . | . . . Special . | . . . Kinetic 109 | 1 46 62 Thermal 26 | 1 25 . Explosive . | . . . Electromagnetic . | . . . Robot Hit Streak 11 | 1 8 11 Robot Miss Streak 9 | . 9 2 Penetration Max . | . . . Secondary Targets 3 | . 2 1 Max Gunslinging Chain 1 | . 1 1 Shots Hit Robots 84 | 1 38 45 Core Hits 27 | 1 15 11 Critical Kills . | . . . Critical Parts Destroyed 1 | . 1 . Critical Strikes 2 | . 1 1 Destroy 2 | . 1 1 Melee Attacks . | . . . Impact . | . . . Slashing . | . . . Piercing . | . . . Sneak Attacks . | . . . Combat Hostiles . | . . . Follow-up Attacks . | . . . Damage Inflicted 1087 | 10 397 680 Guns 1087 | 10 397 680 Cannons . | . . . Explosions . | . . . Melee . | . . . Ramming . | . . . Kinetic 978 | . 298 680 Thermal 109 | 10 99 . Explosive . | . . . Electromagnetic . | . . . Impact . | . . . Slashing . | . . . Piercing . | . . . Highest Corruption . | . . . Average Corruption . | . . . Corruption Purged . | . . . Corruption Blocked . | . . . Overload Shots . | . . . Overflow Damage . | . . . Projectiles . | . . . Explosions . | . . . Melee . | . . . Knockbacks . | . . . Impact . | . . . Kinetic . | . . . Secondary . | . . . Self-Inflicted Damage . | . . . Shots . | . . . Rammed . | . . . Targets Rammed . | . . . Kicked . | . . . Crushed . | . . . Highest Temperature 40 | 20 40 . Average Temperature 16 | 10 17 . Received Heat Transfer 63 | . 45 18 Siege Activations . | . . . Martial Activations . | . . . Shielding Activations . | . . . Robots Disrupted . | . . . Combat Hostiles . | . . . Robots Corrupted . | . . . Combat Hostiles . | . . . Parts Fried . | . . . Impact Corruptions . | . . . Robots Melted . | . . . Combat Hostiles . | . . . Parts Melted . | . . . Heat Transferred 250 | 25 225 . Parts Sabotaged . | . . . Parts Stolen . | . . . Parts Stripped . | . . . Power Chain Reactions . | . . . Alert | -11 -10 -10 ------- Run | Yrd Mat Sub Maximum Alert Level . | . . . Low Security (%) 100 | 100 100 . Level 1 . | . . . Level 2 . | . . . Level 3 . | . . . Level 4 . | . . . Level 5 . | . . . High Security . | . . . Max Security . | . . . Peak Influence 70 | 5 70 . Initial . | . . . Average 9 | . 10 . Influence Increases 162 | 5 157 . Destroy 0b10 Robot/C 100 | . 100 . Destroy 0b10 Robot/NC 15 | 5 10 . Destroy Leader 24 | . 24 . Successful Hack 23 | . 23 . Influence Decreases 162 | 5 156 1 Entered New Map 1 | . . 1 Time Decay 161 | 5 156 . Squads Dispatched 1 | . 1 . Investigation . | . . . Extermination . | . . . Reinforcement 1 | . 1 . Assault . | . . . Garrison . | . . . Intercept . | . . . Searches Triggered . | . . . Construction Impeded . | . . . Haulers Reinforced . | . . . Active Scanning Responses . | . . . Cargo Convoy Interrupts . | . . . Stealth | -11 -10 -10 --------- Run | Yrd Mat Sub Distress Signals . | . . . Communications Jammed . | . . . Distress Signals . | . . . Times Spotted 17 | . 12 5 Peak Tracking Total 3 | . 3 2 Tactical Retreats . | . . . Traps | -11 -10 -10 ------- Run | Yrd Mat Sub Traps Triggered 1 | . 1 . Indirectly . | . . . Trap Hack Attempts . | . . . Triggered . | . . . Disarmed . | . . . Reprogrammed . | . . . Reused . | . . . Traps Extracted . | . . . Installed . | . . . Triggered . | . . . Machines | -11 -10 -10 ---------- Run | Yrd Mat Sub Machines Disabled . | . . . Max in Single Turn . | . . . Machines Repaired . | . . . Machines Dismantled . | . . . Machines Sabotaged . | . . . Overloaded Fab Kills . | . . . Hacking | -11 -10 -10 --------- Run | Yrd Mat Sub Machines Accessed 8 | . 8 . Terminals 7 | . 7 . Fabricators . | . . . Repair Stations . | . . . Recycling Units 1 | . 1 . Scanalyzers . | . . . Garrison Access . | . . . Total Hacks 18 | . 18 . Successful 10 | . 10 . Failed 8 | . 8 . Catastrophic . | . . . Database Lockouts . | . . . Manual 15 | . 15 . Terminals 17 | . 17 . Fabricators . | . . . Repair Stations . | . . . Recycling Units 1 | . 1 . Scanalyzers . | . . . Garrison Access . | . . . Terminal Hacks 2 | . 2 . Zone Layout 2 | . 2 . Fabricator Hacks . | . . . Repair Station Hacks . | . . . Recycling Unit Hacks 1 | . 1 . Retrieve Components 1 | . 1 . Scanalyzer . | . . . Garrison Access Hacks . | . . . Unauthorized Hacks 7 | . 7 . Terminals 7 | . 7 . Botnet 2 | . 2 . Skim 5 | . 5 . Fabricators . | . . . Repair Stations . | . . . Recycling Units . | . . . Scanalyzers . | . . . Garrison Access . | . . . Data Cores Recovered . | . . . Used . | . . . Hacking Detections 6 | . 6 . Full Trace Events . | . . . Feedback Events . | . . . Feedback Blocked . | . . . Robot Schematics Acquired . | . . . Robots Built . | . . . Authchips . | . . . Time . | . . . Total Robot Build Rating . | . . . Part Schematics Acquired . | . . . Parts Built . | . . . Authchips . | . . . Time . | . . . Total Part Build Rating . | . . . Part Studies Acquired . | . . . Parts Repaired . | . . . Time . | . . . Parts Recycled . | . . . Recycled Matter . | . . . Retrieved Matter . | . . . Retrieved Components 1 | . 1 . Parts Scanalyzed . | . . . Part Schematics Acquired . | . . . Parts Damaged . | . . . Bothacking | -11 -10 -10 ------------ Run | Yrd Mat Sub Used RIF Installer . | . . . Robots Hacked . | . . . Non-combat . | . . . Combat . | . . . Robot Hacks Applied . | . . . Relay Couplers Released . | . . . Fabnet Peak Effective % . | . . . Robots Rewired . | . . . Allies Hacked . | . . . Hacks Repelled . | . . . Allies | -11 -10 -10 -------- Run | Yrd Mat Sub Total Allies . | . . . Largest Group . | . . . Highest-Rated Group . | . . . Highest-Rated Ally . | . . . Total Orders . | . . . Ally Attacks . | . . . Total Damage . | . . . Kills . | . . . Allies Corrupted . | . . . Allies Melted . | . . . Intel | -11 -10 -10 ------- Run | Yrd Mat Sub Active Infowar (turns) 1707 | 37 879 791 Terrain 2 | . 2 . Seismic 1705 | 37 877 791 Robot Analysis Total . | . . . Derelict Logs Recovered 1 | . . 1 Drone Launches . | . . . Drone Recoveries . | . . . Exploration | -11 -10 -10 ------------- Run | Yrd Mat Sub Turns Passed 1781 | 111 879 791 Spaces Moved 876 | 58 395 423 Core 10 | 10 . . Treads 866 | 48 395 423 Legs . | . . . Wheels . | . . . Hover . | . . . Flight . | . . . Fastest Speed 50 | 50 160 160 Average Speed 158 | 141 160 160 Slowest Speed 160 | 160 160 160 Overloaded Moves . | . . . Propulsion Burnouts . | . . . Robots Hopped . | . . . Potential Cave-ins . | . . . Cave-ins Triggered . | . . . Exploration Rate (%) 26 | 5 52 21 Regions Visited 2 Branch Regions 1 Pre-discovered Areas . | . . . Known Exits Taken . | . . . Unknown Exits Taken 2 | 1 1 . Scrap Searched . | . . . Spaces Dug . | . . . Terrain Destroyed . | . . . Melee . | . . . Projectile . | . . . AOE . | . . . Terrain Rammed . | . . . Walls Destroyed . | . . . Machines Disabled . | . . . Actions | -11 -10 -10 --------- Run | Yrd Mat Sub Total 1144 | 86 582 476 Wait 147 | 9 126 12 Move 874 | 57 394 423 Hop . | . . . Pick Up 27 | 12 12 3 Fast Attach . | . . . Attach 9 | 7 2 . Detach . | . . . Swap 5 | . 2 3 Drop 14 | . 10 4 Fire 68 | 1 36 31 Melee . | . . . Ram . | . . . Kick . | . . . Crush . | . . . Escape Stasis . | . . . Rewire . | . . . Trap . | . . . Miscellaneous . | . . . Route ------- -11/Scrapyard -10/Materials (discovered 4 exits: *Mat x3 / [*Sub]) -10/Subcaves (discovered 4 exits: *Mat x2 / Rec / [*Scr]) History --------- Turn | Location | Event 5 | -11/Scrapyard | Discovered new exit (range 16) 112 | -11/Scrapyard | Entered Materials 197 | -10/Materials | Discovered new exit (range 14) 303 | -10/Materials | Build established: Mutant 412 | -10/Materials | Discovered new exit (range 3) 506 | -10/Materials | Learned Storage interactive machine intel 560 | -10/Materials | Learned location of 2 exits from Subcaves 589 | -10/Materials | Discovered new exit (range 4) 602 | -10/Materials | Learned location of 2 exits from Subcaves 632 | -10/Materials | Identified exit to Materials 686 | -10/Materials | Learned 4 Subcaves zone layouts 727 | -10/Materials | Learned Storage stockpile data 991 | -10/Materials | Entered Subcaves 992 | -10/Subcaves | Approached by a straggling Scientist 992 | -10/Subcaves | Identified exit to Materials 993 | -10/Subcaves | Identified exit to Recycling 1189 | -10/Subcaves | Scientist uncovered a shortcut to Scraptown 1294 | -10/Subcaves | Core integrity fell below 50% 1604 | -10/Subcaves | Core integrity fell below 20% 1755 | -10/Subcaves | Learned location of 1 exit from Materials 1764 | -10/Subcaves | Ambushed by angry Subdweller bent on revenge 1782 | -10/Subcaves | Destroyed by UF-L86(R) with Subdweller Shrapnel Launcher Last Messages --------------- 01661_ Subatomizers dissect the Sub. Monowheel. 01666_ KC-2DI(R) suffers critical hit (Destroy). 01666_ Destroyed Scrap Shield. 01667_ 03-OXX(u) tweaks Twisted Machinery. 01672_ KC-2DI(R) destroyed. 01677_ Acquired 32 matter. 01678_ Acquired 9 matter. 01685_ 03-OXX(u) tweaks Twisted Machinery. 01688_ Subatomizers dissect the Sub. Monowheel. 01706_ 03-OXX(u) tweaks Twisted Machinery. 01730_ Subatomizers dissect the Sub. Monowheel. 01755_ Acquired derelict log, extracted data. Data stored: Materials exits (x1). 01763_ 03-OXX(u) cries out in pain. 01763_ 03-OXX(u) destroyed. 01764_ 2L-N6Z(R) angrily emerges from the Twisted Machinery. 01764_ 2L-N6Z(R): "MADSUB!" 01766_ 2L-N6Z(R) destroyed. 01771_ Subatomizers dissect the Sub. Monowheel. 01773_ Acquired 51 matter. Map ----- +----------------------------------------------------+ | #????????## ##?????# ## ## #? | | ##???????# ##????# ### #### #? | | ##??????# #??### ## ##??## ? | | ##?????#### #?## #####????## ? | | ?????????????????????????????????????????????????? | | ?????????????????????????????????????????????????? | | ??????????????????? ???????? ?????????????????? | | ????????????????? #????? ????????????????? | | ???????????????? ??# ????????????????? | | ???????????????? ? ???????????????? | | ????????????????? ? #??????????????? | | ????????????????? #? #?????????????? | | ????????????##???# ## ##???????????? | | ???????????## #??# ???????????? | | ???????????# ?## ???????????? | | ???????????# ## R ???????????? | | ???????????# ???????????? | | ??????????## ######?????? | | ?????????## #?????? | | ?????????# ## ## & ##????? | | ??????????????# # ### &!! #????# | | ??????????????# #; # #??# &&! #????# | | ??????????????# ; ## #?## ##??## | | ?????????????## " ;# #?# #### | | ?????????????# ##""" & % ;; ### ## | | ?????????????# """""" @% & ## | | ?????????????#""" & * !< # | | ????????????##" ##;[& ; =& ## ## | | ???????????## ## ;;;; ;;; ####### ## | | ???????????# ## ## ######?????######## | | ?????????# % ##?????????????## | | ?????????# #?????????????# | | ?????????# ## ########### ##?????????????# | | ?????????#??#####?????????### #??????????????# | | ???????????????????????????? #?????????????# | | ???????????????????????????? ##?????????????# | | ???????????????????????????? ??????????????# | | ????????????????????????????# #??????????????## | | ????????????????????????????? #??????????????## | | ????????????????????????????? ??????????????# | | ????????????????????????????? ??????????????# | | ??????????????????????????????????????????????## | | ??????????????????????????????????????????????## | | ??????????????????????????????????????????????# | | ??????????????????????????????????????????????## | | ???????????????????????????????????????????????# | | ???????????????????????????????????????????????# | | ???????????????????????????????????????????????# | | ???????????????????????????????????????????????# | | ???????????????????????????????????????????????# | +----------------------------------------------------+ Best States ------------- Heat Dissipation 25 Energy Generation 10 Energy Capacity 250 Matter Stores 249 Matter Capacity 300 Sight Range 16 Terrain Scan Density 10 Evasion (%) 50 Recoil Reduction 2 Item Schematics ----------------- None Robot Schematics ------------------ None Fabricated ------------ Nothing Repaired ---------- Nothing Studied --------- None Alien Tech Used ----------------- None Achievements -------------- None Challenges ------------ None Game ------ Seed TrapScrapoidCannon Manual? 0 Play Time 00:08:14 Cumulative 627.2 hours Start 2025.12.26 @ 08:38:15 End 2025.12.26 @ 08:44:52 Sessions 1 Manual Loads 0 Difficulty Rogue Special Mode None Game No. 796 Rogue 796 Adventurer 0 Explorer 0 Win Type - Total 23 Types 10/1/3/3/2/0/2/2/0/0 Lore% 96 Gallery% 92 Achievement% 80 Wizard Run 0 Options --------- Layout 0 ASCII 0 Keyboard 0 Movement Mouse Keybinds 0 Fullscreen 1 Font 24/Terminus Map View 76x50 Zoom Use 0% Tactical HUD 1 Map Filters NONE Filters NONE Steam 1 RUN: ad5d787e-5d49-40db-9c29-3086b7bbbf77